bitfinex-derivatives/quotes_ETHF0:USTF0_20250528
["timestamp","ask_amount","ask_price","bid_price","bid_amount"]
[1748398660878,1.47e-06,2630.5,2630.4,27.01016]
[1748398661571,1.47e-06,2630.5,2630.4,5.24316]
[1748398661777,0.75993147,2630.5,2630.4,3.2078]
[1748398661985,0.75993147,2630.5,2630.4,7.92276]
[1748398663478,1.47e-06,2630.5,2630.4,7.92276]
[1748398666581,1.47e-06,2630.5,2630.4,9.25816]
[1748398666880,1.47e-06,2630.5,2630.4,6.60866]
[1748398667386,1.47e-06,2630.5,2630.4,28.36866]
[1748398668487,1.47e-06,2630.5,2630.4,28.36766]
[1748398673081,1.47e-06,2630.5,2630.4,6.60866]
[1748398673484,1.47e-06,2630.5,2630.4,28.36466]
[1748398674986,1.47e-06,2630.5,2630.4,10.56366]
[1748398675285,1.47e-06,2630.5,2630.4,28.36366]
[1748398680588,1.47e-06,2630.5,2630.4,28.36166]
[1748398681197,1.47e-06,2630.5,2630.4,6.60866]
[1748398681388,1.3289,2631.0,2630.9,0.75981]
[1748398681587,1.3289,2631.0,2630.9,7.92261]
[1748398681885,1.3289,2631.0,2630.9,25.71961]
[1748398683797,0.75986,2630.8,2630.7,0.75985]
[1748398684093,0.75987,2630.7,2630.6,3.954]
[1748398684291,7.7541,2630.7,2630.3,3.954]
[1748398684483,0.75995,2630.5,2630.4,0.75995]
[1748398684689,0.75995,2630.5,2630.3,4.71397]
[1748398684884,1.3093,2630.4,2630.3,0.75997]
[1748398685394,6.3093,2630.4,2630.3,0.75997]
[1748398686901,1.3093,2630.4,2630.3,0.75997]
[1748398687390,1.3093,2630.4,2630.3,2.01737]
[1748398688195,1.3093,2630.4,2630.3,4.71497]
[1748398689699,1.3373,2630.7,2630.6,0.7599]
[1748398691494,1.2937,2631.0,2630.9,0.75982]
[1748398691696,1.98,2631.0,2630.9,0.75982]
[1748398692901,0.6772,2631.1,2631.0,0.75979]
[1748398693088,0.00570147,2631.2,2631.1,0.75976]
[1748398693291,0.00570147,2631.2,2631.1,5.96716]
[1748398694307,2.03710147,2631.2,2631.1,5.96716]
[1748398695300,3.2078,2632.1,2631.1,4.5419]
[1748398695599,0.75943,2632.3,2632.1,0.75945]
[1748398695799,0.75942,2632.3,2632.2,0.75943]
[1748398695995,3.20094213,2632.3,2632.2,0.75943]
[1748398696195,7.44152213,2632.3,2632.2,0.75943]
[1748398696501,6.2207618,2632.3,2632.2,0.75943]
[1748398696697,8.8104618,2632.3,2632.2,0.75943]
[1748398697401,3.8104618,2632.3,2632.2,0.75943]
[1748398698998,0.00570147,2632.5,2632.4,0.75938]
[1748398699305,1.2628,2632.7,2632.6,0.75933]
[1748398699600,1.284,2632.9,2632.8,0.75927]
[1748398699794,1.284,2632.9,2632.8,3.96707]
[1748398700198,0.6422,2632.9,2632.8,3.96707]
[1748398701104,1.3295,2633.0,2632.9,0.75924]
[1748398701306,0.00570147,2633.1,2633.0,0.75921]
[1748398701495,0.00570147,2633.1,2633.0,4.70621]
[1748398701697,0.00570147,2633.1,2633.0,3.947]
[1748398701904,5.00570147,2633.1,2632.8,3.2078]
[1748398702207,5.00570147,2633.1,2632.5,3.946]
[1748398702208,0.75928,2632.8,2632.6,0.75931]
[1748398702504,1.9776,2632.7,2632.6,0.75931]
[1748398706203,1.9776,2632.7,2632.6,0.75933]
[1748398706396,2.73692,2632.7,2632.5,3.946]
[1748398706597,1.9776,2632.7,2632.6,0.75933]
[1748398706994,2.7369,2632.7,2632.6,0.75933]
[1748398707308,1.9776,2632.7,2632.6,0.75933]
[1748398708007,2.7369,2632.7,2632.6,0.75933]
[1748398708308,1.9776,2632.7,2632.6,0.75933]
[1748398709006,2.7369,2632.7,2632.6,0.75933]
[1748398709302,1.89832,2632.6,2632.0,0.00570147]
[1748398709505,3.96727,2632.1,2632.0,0.00570147]
[1748398710001,49.76727,2632.1,2632.0,0.00570147]
[1748398710908,51.04797,2632.1,2632.0,0.00570147]
[1748398713107,1.2807,2632.1,2632.0,0.76520147]
[1748398713403,1.41584,2632.2,2632.0,0.00570147]
[1748398713600,0.75947,2632.1,2632.0,0.76518147]
[1748398714003,2.10647,2632.1,2632.0,0.76518147]
[1748398715097,2.10647,2632.1,2632.0,0.00570147]
[1748398715607,2.78967,2632.1,2632.0,0.00570147]
[1748398716006,2.86306423,2632.1,2632.0,0.00570147]
[1748398717403,2.10359423,2632.1,2632.0,0.00570147]
[1748398717599,0.07339423,2632.1,2632.0,0.76520147]
[1748398718204,0.83286423,2632.1,2632.0,0.76520147]
[1748398718414,2.13476423,2632.1,2632.0,0.76520147]
[1748398718710,1.37529423,2632.1,2632.0,0.76520147]
[1748398720106,2.13476423,2632.1,2632.0,0.76520147]
[1748398720309,2.13476423,2632.1,2632.0,0.00570147]
[1748398720509,2.13476423,2632.1,2632.0,0.76520147]
[1748398720708,1.37529423,2632.1,2632.0,0.76520147]
[1748398721003,2.13476423,2632.1,2632.0,0.76520147]
[1748398721209,0.07339423,2632.1,2632.0,0.76520147]
[1748398721414,0.07339423,2632.1,2632.0,3.97300147]
[1748398721609,0.07339423,2632.1,2632.0,0.76520147]
[1748398721806,0.07339423,2632.1,2632.0,2.01060147]
[1748398725923,0.07339423,2632.1,2632.0,9.15740147]
[1748398727217,0.83286423,2632.1,2632.0,22.96310147]
[1748398727408,0.83286423,2632.1,2632.0,23.72260147]
[1748398727705,0.83286423,2632.1,2632.0,2.01060147]
[1748398728205,0.07339423,2632.1,2632.0,2.01060147]
[1748398728408,0.83286423,2632.1,2632.0,2.01060147]
[1748398729118,2.07156423,2632.1,2632.0,2.01060147]
[1748398730516,1.31209423,2632.1,2632.0,2.01060147]
[1748398730820,0.07339423,2632.1,2632.0,2.01060147]
[1748398731116,0.83286423,2632.1,2632.0,2.01060147]
[1748398731616,0.83286423,2632.1,2632.0,0.00570147]
[1748398731818,2.10806423,2632.1,2632.0,0.00570147]
[1748398732919,0.75961,2631.6,2631.5,6.01864]
[1748398733319,0.75961,2631.6,2631.5,7.28204]
[1748398733622,2.03481,2631.7,2631.6,0.75961]
[1748398734018,1.2752,2631.7,2631.6,0.75961]
[1748398734518,0.75953,2631.9,2631.8,0.75956]
[1748398738519,1.89886,2631.9,2631.5,1.32]
[1748398738822,0.75961,2631.6,2631.5,2.07962]
[1748398739318,0.75961,2631.6,2631.5,3.39222]
[1748398740530,0.75964,2631.5,2631.4,0.00570147]
[1748398741025,3.31731888,2631.5,2631.4,0.00570147]
[1748398742618,44.11731888,2631.5,2631.4,0.00570147]
[1748398744219,42.90264,2631.5,2631.4,0.00570147]
[1748398746627,0.75984,2630.8,2630.7,5.224]
[1748398746828,0.75989,2630.7,2630.6,0.75986]
[1748398747419,0.7599,2630.6,2630.5,5.89821]
[1748398747621,0.7599,2630.6,2630.5,3.2078]
[1748398747824,0.75996,2630.4,2630.3,0.00570147]
[1748398749635,1.90032,2629.9,2629.3,4.5814]
[1748398749934,0.76031,2629.2,2629.1,1.3194]
[1748398750226,0.76042,2628.8,2628.7,3.94]
[1748398750422,3.2078,2629.0,2628.5,1.3194]
[1748398750623,0.76048,2628.7,2628.5,2.08559147]
[1748398750817,1.3653,2628.9,2628.6,0.76047]
[1748398751019,3.97389147,2629.0,2628.7,1.3194]
[1748398751225,0.00570147,2629.0,2628.9,0.76039]
[1748398751427,0.00570147,2629.0,2628.9,4.70039]
[1748398752022,0.00570147,2629.0,2628.9,6.60149]
[1748398753628,4.5731,2629.7,2629.6,0.76019]
[1748398753831,3.2078,2629.7,2629.6,0.76019]
[1748398754135,1.90049,2629.6,2628.9,7.7862]
[1748398754326,0.76033,2629.2,2629.0,1.2567]
[1748398755131,2.0064,2629.3,2629.2,0.76031]
[1748398755730,0.76031,2629.2,2629.1,0.76032]
[1748398756232,2.00639,2629.3,2629.2,0.76031]
[1748398756935,0.76033,2629.2,2629.1,0.76033]
[1748398757533,2.0064,2629.3,2629.2,0.76031]
[1748398760131,0.76034,2629.2,2629.1,0.76034]
[1748398761432,2.00639,2629.3,2629.2,0.76031]
[1748398762034,0.76033,2629.2,2629.1,0.76032]
[1748398763737,0.00570147,2629.4,2629.3,0.76028]
[1748398764940,0.76595147,2629.4,2629.3,0.76028]
[1748398765436,0.00570147,2629.4,2629.3,0.76028]
[1748398766341,0.00570147,2629.4,2629.3,4.69528]
[1748398766839,0.00570147,2629.4,2629.3,5.97708]
[1748398767938,1.2593,2630.2,2629.3,5.97708]
[1748398767939,0.76002,2630.3,2630.2,0.75999]
[1748398768333,3.2078,2630.4,2629.8,3.2078]
[1748398768334,4.5781,2630.4,2629.8,3.2078]
[1748398768640,0.7601,2630.0,2629.9,2.12617]
[1748398768939,0.76006,2630.1,2630.0,0.76005]
[1748398769834,0.76007,2630.0,2629.9,2.12618]
[1748398770534,0.76007,2630.1,2630.0,0.76005]
[1748398770934,1.37600147,2630.2,2629.9,1.3661]
[1748398770935,0.76007,2630.0,2629.9,1.3661]
[1748398771133,0.76013,2629.8,2629.7,0.00570147]
[1748398771329,0.76013,2629.8,2629.7,4.70086147]
[1748398772141,0.76013,2629.8,2629.7,3.94070147]
[1748398772731,0.76013,2629.8,2629.7,4.70086147]
[1748398773633,0.76013,2629.8,2629.7,0.76586147]
[1748398774043,0.76013,2629.8,2629.7,0.00570147]
[1748398774741,0.76013,2629.8,2629.7,0.76586147]
[1748398775736,1.2831,2629.9,2629.8,0.76013]
[1748398775936,0.7601,2630.0,2629.9,0.7601]
[1748398776638,0.76013,2629.8,2629.7,0.00570147]
[1748398777038,0.76013,2629.8,2629.7,0.76586147]
[1748398778841,2.02692,2629.9,2629.8,0.76013]
[1748398779143,0.76013,2629.8,2629.7,0.76585147]
[1748398779350,2.01363,2629.8,2629.7,0.76585147]
[1748398779640,1.2535,2629.8,2629.7,0.76585147]
[1748398780346,2.01363,2629.8,2629.7,0.76585147]
[1748398783646,0.76008,2630.1,2630.0,0.76005]
[1748398783849,0.7601,2629.9,2629.8,1.2629]
[1748398784147,0.7601,2629.9,2629.8,2.02303]
[1748398784354,0.7601,2629.9,2629.8,1.2629]
[1748398784542,0.7601,2629.9,2629.8,2.02303]
[1748398785545,0.76009,2630.0,2629.9,0.7601]
[1748398785751,0.76005,2630.1,2630.0,0.76005]
[1748398786144,0.76005,2630.1,2630.0,2.06435]
[1748398786848,0.76574147,2630.2,2630.1,0.76005]
[1748398787153,0.76005,2630.1,2630.0,2.06435]
[1748398789544,2.08853147,2630.2,2630.1,0.76005]
[1748398790151,2.08853147,2630.2,2630.0,2.06435]
[1748398790152,0.76005,2630.1,2630.0,2.06435]
[1748398790653,0.76005,2630.1,2630.0,1.3043]
[1748398790952,0.76005,2630.1,2630.0,2.06437]
[1748398792043,3.2078,2630.1,2629.7,0.00570147]
[1748398792250,0.76013,2629.8,2629.7,1.26270147]
[1748398792848,0.76013,2629.8,2629.7,2.02286147]
[1748398793050,1.315,2630.0,2629.7,1.26270147]
[1748398793347,2.07509,2630.0,2629.9,0.7601]
[1748398794762,0.7601,2629.9,2629.8,1.257]
[1748398795054,0.7601,2629.9,2629.8,2.0171]
[1748398795451,1.315,2630.0,2629.8,1.257]
[1748398795650,1.315,2630.0,2629.9,0.7601]
[1748398796151,2.07507,2630.0,2629.9,0.7601]
[1748398796349,1.315,2630.0,2629.9,2.1153]
[1748398796545,2.07507,2630.0,2629.9,2.1153]
[1748398796757,0.76572147,2630.2,2630.1,0.76005]
[1748398797061,1.98106897,2630.2,2630.1,0.76005]
[1748398797555,1.98106897,2630.2,2630.1,2.11525]
[1748398797745,3.24596897,2630.2,2630.1,2.11525]
[1748398797950,0.76005,2630.1,2630.0,0.6408]
[1748398798152,0.76013,2629.8,2629.7,0.00570147]
[1748398798656,1.97613984,2629.8,2629.7,0.00570147]
[1748398798859,41.56013,2629.8,2629.7,0.00570147]
[1748398799051,42.91903,2629.8,2629.7,0.00570147]
[1748398799251,44.1349809,2629.8,2629.7,0.00570147]
[1748398799651,44.134952,2629.8,2629.7,0.00570147]
[1748398800362,42.91903,2629.8,2629.7,0.00570147]
[1748398800650,44.13492357,2629.8,2629.7,0.76586147]
[1748398800860,44.13492357,2629.8,2629.7,0.00570147]
[1748398801048,47.34272357,2629.8,2629.7,0.00570147]
[1748398802152,47.34226221,2629.8,2629.7,0.00570147]
[1748398802356,0.76028,2629.3,2629.2,3.2078]
[1748398802751,0.76028,2629.3,2629.2,3.96811]
[1748398803361,0.76028,2629.3,2629.2,3.2078]
[1748398803561,0.76028,2629.3,2629.2,3.96811]
[1748398804561,0.76028,2629.3,2629.2,3.2078]
[1748398804861,0.76028,2629.3,2629.2,3.96811]
[1748398806359,0.76028,2629.3,2629.2,3.2078]
[1748398806554,0.76031,2629.2,2629.1,18.52332]
[1748398806754,2.02081,2629.2,2629.1,18.52332]
[1748398806955,1.2605,2629.2,2629.1,0.76032]
[1748398807157,0.76029,2629.3,2629.2,0.76031]
[1748398807567,3.2078,2629.5,2629.2,1.90077]
[1748398807867,3.96803,2629.5,2629.4,0.76025]
[1748398808051,4.42160121,2629.5,2629.4,0.76025]
[1748398808250,3.96802,2629.5,2629.4,0.76025]
[1748398810061,1.9582,2629.7,2629.3,3.23315]
[1748398810258,2.71838,2629.7,2629.6,0.76019]
[1748398812764,2.08268,2629.7,2629.6,0.76019]
[1748398814058,2.08268,2629.7,2629.3,4.68525]
[1748398814059,0.76029,2629.4,2629.3,4.68525]
[1748398814269,0.76028,2629.3,2629.2,2.02259]
[1748398814472,0.76028,2629.3,2629.2,1.2623]
[1748398814662,0.76031,2629.2,2629.1,2.05523]
[1748398814860,2.12831,2629.2,2629.1,2.05523]
[1748398815565,2.12831,2629.2,2629.1,1.2949]
[1748398815759,4.5758,2629.2,2629.0,0.00570147]
[1748398815959,4.5758,2629.2,2628.4,1.90133]
[1748398815960,1.90084,2629.1,2628.2,3.925]
[1748398816165,1.90106,2628.8,2628.2,3.925]
[1748398816364,0.76054,2628.5,2628.4,0.76052]
[1748398816560,0.76048,2628.7,2628.6,0.76046]
[1748398816763,46.10401,2628.9,2628.8,0.76042]
[1748398816961,5.30401,2628.9,2628.8,0.76042]
[1748398817565,3.2078,2628.9,2628.8,0.76042]
[1748398818170,0.00570147,2629.1,2629.0,0.76036]
[1748398818561,0.00570147,2629.1,2629.0,2.04036]
[1748398820165,0.76604147,2629.1,2629.0,1.28]
[1748398820472,0.76042,2628.9,2628.8,3.925]
[1748398820864,0.76042,2628.8,2628.6,2.58770147]
[1748398821065,3.2078,2628.4,2626.8,3.925]
[1748398821366,4.5958,2628.7,2626.8,3.925]
[1748398821367,1.90158,2628.1,2627.1,1.90224]
[1748398821563,3.2078,2627.5,2627.4,0.76083]
[1748398824467,3.2078,2627.5,2627.2,0.00570147]
[1748398824674,0.76086,2627.3,2627.2,0.00570147]
[1748398825073,2.74075,2627.4,2627.2,0.00570147]
[1748398825269,1.2845,2627.3,2627.2,0.76659147]
[1748398825473,3.2078,2627.5,2627.2,0.76659147]
[1748398825474,3.2078,2627.5,2627.4,0.76083]
[1748398826076,0.76083,2627.4,2627.3,2.02153]
[1748398826273,2.04533,2627.4,2627.3,2.02153]
[1748398826583,2.04534,2627.4,2627.3,0.76086]
[1748398827281,0.76086,2627.3,2627.2,0.76657147]
[1748398827578,1.2845,2627.3,2627.2,0.76657147]
[1748398828481,3.96861,2627.5,2627.4,0.76083]
[1748398828674,5.23311,2627.5,2627.4,0.76083]
[1748398828873,0.76083,2627.4,2627.3,2.03614]
[1748398829075,2.02533,2627.4,2627.3,2.03614]
[1748398829480,2.02533,2627.4,2627.3,0.76086]
[1748398830582,1.2645,2627.4,2627.3,0.76086]
[1748398831476,2.02533,2627.4,2627.3,0.76086]
[1748398831676,1.2645,2627.4,2627.3,0.76086]
[1748398832483,2.02533,2627.4,2627.3,0.76086]
[1748398832682,1.2645,2627.4,2627.3,0.76086]
[1748398832982,3.2078,2627.5,2627.4,0.76083]
[1748398833182,4.5016,2627.5,2627.4,0.76083]
[1748398833881,3.2078,2627.5,2627.4,0.76083]
[1748398834082,3.2078,2627.5,2627.4,1.44593]
[1748398835185,0.00570147,2627.7,2627.6,0.76077]
[1748398835781,0.00570147,2627.7,2627.6,1.40977]
[1748398835979,0.76077,2627.6,2627.5,0.76078]
[1748398836175,0.76085,2627.4,2627.3,0.76082]
[1748398836381,3.96865,2627.4,2627.3,0.76082]
[1748398836581,3.2078,2627.4,2627.3,0.76082]
[1748398836782,4.5092,2627.4,2627.3,0.76082]
[1748398837191,4.5092,2627.4,2627.3,1.40412]
[1748398838586,4.50293384,2627.4,2627.3,1.40412]
[1748398840176,4.50293384,2627.4,2627.3,0.76082]
[1748398840783,4.50293384,2627.4,2627.3,2.13472]
[1748398841082,4.50293384,2627.4,2627.3,2.77032]
[1748398841279,3.20153384,2627.4,2627.3,2.77032]
[1748398842483,3.21350147,2627.7,2627.6,0.76077]
[1748398843691,4.46820147,2627.7,2627.6,0.76077]
[1748398843892,5.22894147,2627.7,2627.6,0.76077]
[1748398844590,0.7608,2627.6,2627.5,0.76078]
[1748398844792,2.0155,2627.6,2627.5,0.76078]
[1748398845886,0.76083,2627.5,2627.4,0.7608]
[1748398846089,2.70343,2627.5,2627.4,0.7608]
[1748398846690,1.9426,2627.5,2627.4,0.7608]
[1748398847692,2.7034,2627.5,2627.4,0.7608]
[1748398849692,1.9426,2627.5,2627.4,0.7608]
[1748398849990,2.7034,2627.5,2627.4,0.7608]
[1748398850295,0.76086,2627.4,2627.3,0.76083]
[1748398850593,5.92946,2627.4,2627.3,0.76083]
[1748398851286,10.1686,2627.4,2627.2,0.00570147]
[1748398851487,1.21555698,2627.3,2626.3,3.2078]
[1748398851686,3.2078,2626.5,2625.9,3.924]
[1748398851883,3.2078,2626.8,2626.1,1.90302]
[1748398852091,3.2078,2626.8,2626.7,0.76103]
[1748398852988,3.2078,2627.1,2627.0,0.76094]
[1748398853296,4.65543,2627.4,2627.3,0.76086]
[1748398854688,5.96103,2627.4,2627.3,0.76086]
[1748398855795,0.76092,2627.1,2627.0,0.76092]
[1748398856086,0.76092,2627.1,2626.1,42.16297]
[1748398856087,0.76096,2627.0,2626.9,0.76096]
[1748398856287,2.77156,2627.0,2626.7,3.924]
[1748398856490,0.6354,2626.9,2626.8,0.761]
[1748398856697,1.9615,2626.9,2626.8,4.685]
[1748398857091,1.3261,2626.9,2626.8,4.685]
[1748398857398,3.2078,2627.1,2627.0,0.76094]
[1748398857893,4.5339,2627.1,2627.0,0.76094]
[1748398858297,5.29481,2627.1,2627.0,0.76094]
[1748398858498,4.5339,2627.1,2627.0,0.76094]
[1748398858699,4.5339,2627.1,2627.0,2.04504]
[1748398860596,3.2078,2627.1,2627.0,2.04504]
[1748398860992,3.2078,2627.4,2627.1,1.90229]
[1748398861196,5.24853,2627.4,2627.3,0.76086]
[1748398864615,4.4877,2627.4,2627.3,0.76086]
[1748398864816,4.4877,2627.4,2627.3,2.03816]
[1748398865412,5.24853,2627.4,2627.3,2.03816]
[1748398865913,5.24853,2627.4,2627.3,0.76086]
[1748398866310,0.7609,2627.2,2627.1,0.76088]
[1748398866515,4.4877,2627.4,2627.3,0.76086]
[1748398866720,5.24853,2627.4,2627.3,0.76086]
[1748398867819,4.4877,2627.4,2627.3,0.76086]
[1748398868020,5.24853,2627.4,2627.3,0.76086]
[1748398868913,3.2078,2627.4,2627.3,0.76086]
[1748398869114,3.21350147,2627.7,2627.6,0.76077]
[1748398869314,4.55050147,2627.7,2627.6,4.68477]
[1748398869515,3.21350147,2627.7,2627.6,4.68477]
[1748398871722,3.97424147,2627.7,2627.6,3.924]
[1748398871919,3.21350147,2627.7,2627.6,4.68477]
[1748398872320,4.55470147,2627.7,2627.6,4.68477]
[1748398873024,3.21350147,2627.7,2627.6,4.68477]
[1748398875422,3.21350147,2627.7,2627.6,22.45077]
[1748398875628,3.21350147,2627.7,2627.6,4.68277]
[1748398877322,1.31210147,2627.7,2627.6,4.68277]
[1748398877727,5.28064147,2627.7,2627.6,3.922]
[1748398878031,0.76077,2627.6,2627.5,3.922]
[1748398878220,0.7609,2627.3,2627.2,0.76088]
[1748398878528,0.7609,2627.3,2627.2,4.68288]
[1748398878924,2.7157,2627.3,2627.2,4.68288]
[1748398879125,1.9548,2627.3,2627.2,4.68288]
[1748398879321,0.76106,2626.6,2626.5,0.6473]
[1748398879537,0.76109,2626.5,2626.4,3.922]
[1748398879725,1.3064,2626.5,2626.4,4.68311]
[1748398880029,1.3064,2626.5,2626.4,3.922]
[1748398880327,5.27529,2626.5,2626.4,3.922]
[1748398880728,0.76115,2626.3,2626.1,38.357]
[1748398880928,4.4578,2626.2,2626.1,43.0402]
[1748398881121,4.4578,2626.2,2625.4,5.1113]
[1748398881327,0.76139,2625.5,2625.1,3.2078]
[1748398881625,1.9259,2625.4,2625.0,3.922]
[1748398881832,1.9259,2625.4,2625.3,0.76143]
[1748398882034,1.9259,2625.4,2625.0,3.922]
[1748398882328,1.9259,2625.4,2625.3,0.76143]
[1748398882530,1.25,2625.4,2625.3,0.76143]
[1748398883229,3.2078,2625.4,2625.3,0.76143]
[1748398883429,3.2078,2625.4,2625.1,1.321]
[1748398883637,1.3004,2625.3,2625.2,3.922]
[1748398884329,1.3004,2625.3,2625.2,4.68346]
[1748398884537,3.2078,2625.7,2625.3,0.76143]
[1748398884835,3.2078,2625.4,2625.2,3.922]
[1748398885031,3.2078,2625.4,2625.3,0.76142]
[1748398885636,3.2078,2625.4,2625.3,4.68442]
[1748398886933,3.2078,2625.4,2625.3,0.76142]
[1748398887233,3.2078,2625.4,2625.3,4.68442]
[1748398887438,1.3004,2625.7,2625.6,0.76135]
[1748398889035,0.00571244,2626.1,2625.4,1.9035]
[1748398889236,0.00571244,2626.1,2626.0,0.76123]
[1748398889738,1.36451244,2626.1,2626.0,4.68523]
[1748398890235,0.00571244,2626.1,2626.0,4.68523]
[1748398890931,2.44e-06,2626.1,2626.0,4.68523]
[1748398891238,2.44e-06,2626.1,2626.0,9.68523]
[1748398894841,2.44e-06,2626.1,2626.0,9.68423]
[1748398895135,2.44e-06,2626.1,2626.0,4.68423]
[1748398896232,2.44e-06,2626.1,2626.0,0.76123]
[1748398896432,2.44e-06,2626.1,2626.0,4.68423]
[1748398896933,2.44e-06,2626.1,2626.0,0.76123]
[1748398897139,2.44e-06,2626.1,2626.0,4.68523]
[1748398897537,2.44e-06,2626.1,2626.0,0.76123]
[1748398897837,2.44e-06,2626.1,2626.0,4.68523]
[1748398898138,2.44e-06,2626.1,2626.0,0.76123]
[1748398898346,2.44e-06,2626.1,2626.0,4.68523]
[1748398898934,2.44e-06,2626.1,2626.0,0.76123]
[1748398899135,2.44e-06,2626.1,2626.0,4.68523]
[1748398905849,2.44e-06,2626.1,2626.0,22.50623]
[1748398906149,2.44e-06,2626.1,2626.0,4.71423]
[1748398907047,1.24280244,2626.1,2626.0,4.71423]
[1748398907650,1.24280244,2626.1,2626.0,0.76123]
[1748398908043,1.24280244,2626.1,2626.0,4.71423]
[1748398908450,1.24280244,2626.1,2626.0,0.76123]
[1748398908749,1.24280244,2626.1,2626.0,4.71423]
[1748398910544,2.44e-06,2626.1,2626.0,4.71423]
[1748398915152,2.44e-06,2626.1,2626.0,7.92203]
[1748398915352,2.44e-06,2626.1,2626.0,12.92203]
[1748398917156,2.44e-06,2626.1,2626.0,3.96903]
[1748398917349,2.44e-06,2626.1,2626.0,22.49623]
[1748398918256,2.44e-06,2626.1,2626.0,22.49423]
[1748398918755,1.99530244,2626.1,2626.0,22.49023]
[1748398919357,1.99530244,2626.1,2626.0,0.76123]
[1748398919654,1.99530244,2626.1,2626.0,22.48823]
[1748398920855,1.99530244,2626.1,2626.0,0.76123]
[1748398921043,1.99530244,2626.1,2626.0,22.48823]
[1748398922555,1.99530244,2626.1,2626.0,0.76123]
[1748398922751,1.99530244,2626.1,2626.0,22.48823]
[1748398922949,1.99530244,2626.1,2626.0,3.952]
[1748398923255,2.75653244,2626.1,2626.0,4.71323]
[1748398924054,2.75653244,2626.1,2626.0,3.952]
[1748398924359,2.75653244,2626.1,2626.0,4.71423]
[1748398924552,1.99530244,2626.1,2626.0,4.71423]
[1748398924858,1.35360244,2626.1,2626.0,4.71423]
[1748398925253,2.44e-06,2626.1,2626.0,4.71423]
[1748398925565,2.44e-06,2626.1,2626.0,6.61243]
[1748398926255,2.44e-06,2626.1,2626.0,14.82023]
[1748398927259,3.2078,2626.8,2626.7,0.76103]
[1748398927553,3.2078,2626.8,2626.7,22.48803]
[1748398928561,0.00571244,2627.0,2626.9,0.76097]
[1748398929151,3.2078,2627.5,2627.4,0.76083]
[1748398929361,3.2078,2627.5,2627.4,4.71283]
[1748398929864,3.2078,2627.6,2627.5,0.7608]
[1748398930568,3.96859,2627.6,2627.5,3.952]
[1748398930861,0.76083,2627.4,2627.3,3.95771244]
[1748398931360,0.76083,2627.4,2627.3,0.00571244]
[1748398932061,5.76083,2627.4,2627.3,0.00571244]
[1748398933259,3.2078,2627.6,2627.5,0.7608]
[1748398933260,3.96858,2627.6,2627.5,0.7608]
[1748398934767,0.76082,2627.5,2627.4,0.76081]
[1748398934958,0.76083,2627.4,2627.3,0.76655244]
[1748398935766,5.76083,2627.4,2627.3,0.00571244]
[1748398937063,0.76094,2627.0,2626.9,4.68495]
[1748398937265,3.96874,2627.0,2626.9,3.924]
[1748398937467,8.96874,2627.0,2626.9,3.924]
[1748398938265,8.96874,2627.0,2626.7,4.69074244]
[1748398938266,0.761,2626.8,2626.7,4.69074244]
[1748398939168,1.2604,2626.9,2626.8,0.761]
[1748398939360,2.02139,2626.9,2626.8,0.761]
[1748398939864,0.761,2626.8,2626.7,4.69073244]
[1748398940064,2.0214,2626.8,2626.7,3.92971244]
[1748398940263,2.692,2626.8,2626.7,3.92971244]
[1748398940665,2.692,2626.8,2626.7,4.69074244]
[1748398940964,2.692,2626.8,2626.7,3.92971244]
[1748398941160,0.76117,2626.3,2626.1,1.3617]
[1748398941355,3.96897,2626.3,2626.2,4.68515]
[1748398941571,3.96895,2626.3,2626.2,4.68515]
[1748398941764,3.96895,2626.3,2626.2,3.924]
[1748398942258,0.76128,2625.9,2625.8,0.76125]
[1748398942460,3.2078,2625.9,2625.8,0.76125]
[1748398943162,3.96906,2625.9,2625.8,0.76125]
[1748398943971,0.76133,2625.7,2625.6,0.76133]
[1748398944371,3.2078,2625.9,2625.5,42.289]
[1748398944372,0.76135,2625.6,2625.5,42.289]
[1748398944670,3.8424,2625.6,2625.5,43.05038]
[1748398945271,4.60375,2625.6,2625.5,43.05038]
[1748398945773,3.8424,2625.6,2625.5,0.76138]
[1748398946161,3.2078,2625.6,2625.5,0.76138]
[1748398946365,3.2078,2625.9,2625.8,0.76127]
[1748398946667,3.2078,2625.9,2625.5,2.04476]
[1748398946869,3.2078,2625.6,2625.2,3.925]
[1748398947168,3.96924,2625.3,2625.2,3.925]
[1748398947572,3.2078,2625.3,2625.2,4.68646]
[1748398948276,0.76148,2625.2,2625.1,4.68647]
[1748398948579,3.2078,2625.3,2625.2,0.76146]
[1748398949070,3.2078,2625.3,2625.2,2.09866]
[1748398950563,3.2078,2625.3,2625.2,0.76146]
[1748398950871,2.54922,2626.0,2625.4,0.76141]
[1748398950872,0.76138,2625.5,2625.4,0.76141]
[1748398951070,3.2078,2625.6,2625.2,3.926]
[1748398951261,3.2078,2625.3,2625.2,4.68746]
[1748398951773,3.2078,2625.3,2625.2,3.926]
[1748398951975,3.96924,2625.3,2625.2,3.926]
[1748398952474,3.96924,2625.3,2624.7,3.17301]
[1748398952475,0.76148,2625.2,2625.1,0.76149]
[1748398952673,0.76168,2624.5,2624.0,3.976]
[1748398952970,3.21351244,2624.5,2624.4,0.76169]
[1748398953170,0.00571244,2624.5,2624.4,0.76169]
[1748398953677,0.00571244,2624.5,2624.4,4.68769]
[1748398954571,0.00571244,2624.5,2624.4,5.95419]
[1748398955779,3.2078,2624.9,2624.8,0.76158]
[1748398955975,3.2078,2624.9,2624.8,4.68758]
[1748398956471,3.2078,2624.9,2624.7,0.76161]
[1748398956677,3.2078,2624.9,2624.8,0.76158]
[1748398957077,3.8428,2624.9,2624.8,0.76158]
[1748398957377,0.00571244,2625.1,2625.0,0.76152]
[1748398957579,0.00571244,2625.1,2625.0,4.68852]
[1748398958677,0.00571244,2625.1,2625.0,6.02352]